[Event "Cabo Verde Open 2022"]
[Site "Mindelo-S. Vicente"]
[Date "2022.04.24"]
[Round "3.3"]
[White "Fernandes, Antonio"]
[Black "Varela La Madrid, Tilsia Carolina"]
[Result "1-0"]
[ECO "E04"]
[WhiteElo "2313"]
[BlackElo "2097"]
[Annotator "TA"]
[PlyCount "95"]
[EventDate "2022.04.22"]
[EventType "swiss"]
[SourceTitle "playchess.com"]
[Source "ChessBase"]
[SourceQuality "1"]
[TimeControl "40/5400+30:1800+30"]

{[%evp 10,95,12,0,0,0,2,0,13,9,44,41,46,22,29,31,35,31,38,39,41,35,96,101,107,100,105,100,102,106,314,314,283,179,243,70,73,72,80,70,71,55,91,81,170,105,118,119,131,83,127,109,162,175,245,257,235,222,231,212,381,362,356,354,384,391,521,505,551,535,580,570,573,563,558,539,568,570,626,599,1122,975,5527,6536,6087,6428,5206,950]} 1. d4 {[%emt 0:00:03]} d5 {[%emt 0:03:54]} 2. c4 {[%emt 0:01:25]} e6 {[%emt 0:00:11]} 3. Nf3 {[%emt 0:00:26]} Nf6 {[%emt 0:00:33]} 4. g3 {[%emt 0:00:22]} dxc4 {[%emt 0:02:24]} 5. Bg2 {[%emt 0:03:35]} c5 {[%emt 0:00:48]} 6. Qa4+ {[%emt 0:01:08]} Bd7 {[%emt 0:10:46] E04: Open Catalan: 5 Nf3.} 7. Qxc4 {[%emt 0:01:11]} b5 {[%emt 0:02:45]} 8. Qc2 {[%emt 0:01:08]} Na6 {[%emt 0:00:34] The position is equal.} 9. O-O {[%emt 0:10:02]} Nb4 {[%emt 0:01:01]} 10. Qd1 {[%emt 0:01:45]} Rc8 {[%emt 0:02:07]} 11. a3 {[%emt 0:07:16]} Nc6 {[%emt 0:02:39] [#]} 12. Nc3 $146 {[%emt 0:19:15]} ({Predecessor:} 12. dxc5 Bxc5 13. Nc3 b4 14. axb4 Bxb4 15. Bg5 h6 16. Bxf6 Qxf6 17. Nb5 a5 18. Nd6+ Bxd6 19. Qxd6 {½-½ (56) Lekic,D (2340)-Drazic,S (2483) Bar 2007}) 12... Nxd4 {[%emt 0:01:37]} 13. Nxd4 {[%emt 0:00:37]} cxd4 {[%emt 0:00:08]} 14. Qxd4 {[%emt 0:00:06]} Bc5 {[%emt 0:00:51]} 15. Qd3 {[%emt 0:00:15]} Qb6 {[%emt 0:06:59]} ({Better is} 15... O-O $14) 16. Bg5 $36 {[%emt 0:15:05][%mdl 2048] Keeping Black busy.} Be7 {[%emt 0:06:06]} 17. Rad1 {[%emt 0:09:44] Bxf6 is the strong threat.} Rd8 {[%emt 0:02:32]} 18. Be3 {[%emt 0:03:48]} Qb8 {[%emt 0:01:26]} 19. Qd4 {[%emt 0:00:37] &Bianco is much more active.} a6 $2 {[%emt 0:01:38]} (19... b4 $16) 20. Bf4 $18 {[%emt 0:01:41]} Qc8 {[%emt 0:00:18]} 21. Qb6 {[%emt 0:09:29] Against Bc6. Threatens to win with Bc7.} Bc5 {[%emt 0:02:55] [#]} (21... Qc5 $142 22. Qxa6 O-O) 22. Qb7 $2 {[%emt 0:00:03]} (22. Qa5 $1 $18) 22... Qxb7 $1 $14 {[%emt 0:02:09]} 23. Bxb7 {[%emt 0:00:03] And now b4 would win.} Bc8 {[%emt 0:00:28] [#]} 24. Bc7 $1 {[%emt 0:11:33]} Rxd1 {[%emt 0:00:38]} 25. Rxd1 {[%emt 0:00:01]} O-O {[%emt 0:00:40]} (25... Bxf2+ $2 26. Kxf2 Ng4+ 27. Kg1 $18) 26. Bc6 {[%emt 0:00:25]} e5 {[%emt 0:05:48]} (26... h5 $16) 27. Nd5 {[%emt 0:02:16]} (27. Bxe5 $6 Bxf2+ 28. Kg2 (28. Kxf2 Ng4+ 29. Ke1 Nxe5 $11) 28... Ng4 $11) (27. b4 $18 Ba7 28. e3 (28. Bxe5 Bxf2+ 29. Kg2 Ng4 $14)) 27... Bg4 {[%emt 0:06:53]} 28. Bxe5 {[%emt 0:00:35]} Bxe2 {[%emt 0:00:42]} 29. Re1 {[%emt 0:00:34]} (29. Nxf6+ gxf6 30. Rd5 fxe5 $14) (29. Rd2 $142 Nxd5 30. Rxe2 (30. Bxd5 Bg4 $14) (30. Rxd5 Bb6 $14)) 29... Nxd5 {[%emt 0:02:20]} 30. Rxe2 {[%emt 0:00:02]} (30. Bxd5 Bc4 31. Bxc4 bxc4 $14) 30... Ne7 {[%emt 0:09:18] [#]} (30... Nf6 $16) 31. Bb7 $1 $18 {[%emt 0:00:09] Hoping for Rc2. A strong pair of Bishops.} Ng6 {[%emt 0:04:41]} (31... Nf5 {is a better defense.} 32. Rd2 (32. Bxa6 f6 $16) 32... f6) 32. Bc7 {[%emt 0:00:37]} ({Inferior is} 32. Bxa6 Re8 33. Bd6 (33. b4 Bb6 $17) 33... Rxe2 $17) 32... a5 {[%emt 0:01:19]} 33. Bxa5 {[%emt 0:00:16]} Rb8 {[%emt 0:00:17]} 34. Bc6 {[%emt 0:00:35]} f6 $2 {[%emt 0:00:32]} (34... Ne7 {was called for.}) 35. Re8+ {[%emt 0:01:09]} Rxe8 {[%emt 0:00:18]} 36. Bxe8 {[%emt 0:00:03][%mdl 4096] Endgame KBB-KBN} Ne5 {[%emt 0:01:30]} 37. Bxb5 {[%emt 0:00:03]} Ng4 {[%emt 0:01:07]} 38. Be1 {[%emt 0:00:14] White is clearly winning.} Kf8 {[%emt 0:00:12]} 39. Kg2 {[%emt 0:01:23]} Bd4 {[%emt 0:00:18]} 40. b4 {[%emt 0:00:00]} Ke7 {[%emt 0:00:00]} 41. a4 {[%emt 0:04:20][%cal Ba3a4,Ba4a5,Ba5a6,Ba6a7][%mdl 32]} Kd6 {[%emt 0:00:30]} 42. h3 {[%emt 0:05:27]} Ne5 {[%emt 0:00:18]} 43. f4 {[%emt 0:00:46]} Nf7 {[%emt 0:00:25]} 44. Bf2 {[%emt 0:01:37]} Bc3 {[%emt 0:00:06]} 45. a5 {[%emt 0:00:24] a6 would kill now.} Kc7 {[%emt 0:01:33]} 46. a6 {[%emt 0:01:17] White threatens a7 and mate.} Nd8 {[%emt 0:00:47]} 47. a7 {[%emt 0:01:18]} Kb7 {[%emt 0:00:21]} 48. Bc4 {[%emt 0:00:50] Weighted Error Value: White=0.15 (very precise) /Black=0.31} 1-0

[Event "Cabo Verde Open 2022"]
[Site "Mindelo-S. Vicente"]
[Date "2022.04.24"]
[Round "3.4"]
[White "Mirulla, David"]
[Black "Ortega Amarelle, Mariano"]
[Result "0-1"]
[ECO "B44"]
[WhiteElo "1972"]
[BlackElo "2476"]
[Annotator "TA"]
[PlyCount "42"]
[EventDate "2022.04.22"]
[EventType "swiss"]
[SourceTitle "playchess.com"]
[Source "ChessBase"]
[SourceQuality "1"]
[TimeControl "40/5400+30:1800+30"]

{[%evp 17,42,0,12,0,0,-3,-10,-14,0,0,0,-17,0,5,31,34,21,12,87,-60,-72,-82,-79,-773,-770,-727,-702]} 1. e4 {[%emt 0:00:08]} c5 {[%emt 0:00:09]} 2. Nf3 {[%emt 0:00:13]} Nc6 {[%emt 0:00:05]} 3. d4 {[%emt 0:00:21]} cxd4 {[%emt 0:00:06]} 4. Nxd4 {[%emt 0:00:09]} e6 {[%emt 0:00:17]} 5. c4 {[%emt 0:16:03]} Nf6 {[%emt 0:00:30]} 6. Nc3 {[%emt 0:07:58]} Bb4 {[%emt 0:01:11]} 7. Nxc6 {[%emt 0:05:19]} bxc6 {[%emt 0:00:29]} 8. Bd3 {[%emt 0:00:53]} e5 {[%emt 0:22:09]} 9. O-O {[%emt 0:04:37]} O-O {[%emt 0:01:43]} 10. Qa4 {[%emt 0:04:44] 10.h3 is a critical line. B44: Sicilian: Taimanov: 5 Nb5.} Bc5 {[%emt 0:02:24]} 11. Bg5 {[%emt 0:16:09]} h6 {[%emt 0:15:27]} 12. Bd2 {[%emt 0:10:21] [#] The position is equal.} Bb7 $146 {[%emt 0:14:53]} ({Predecessor:} 12... Rb8 13. Rab1 Bd4 14. b4 d5 15. exd5 cxd5 16. c5 a5 17. Ne2 axb4 18. Nxd4 exd4 {½-½ (45) Marco,C (2058)-Fantinel,T (2144) France 2009}) 13. Rad1 {[%emt 0:06:18]} Qe7 {[%emt 0:12:52]} 14. Ne2 {[%emt 0:02:40]} a5 {[%emt 0:05:48] Prevents b4.} (14... Ng4 {seems wilder.} 15. Be1 a5 16. Qc2 d6) 15. Ng3 {[%emt 0:01:44]} d5 {[%emt 0:07:45]} 16. cxd5 {[%emt 0:02:53]} cxd5 {[%emt 0:00:02]} 17. exd5 {[%emt 0:00:56]} Bxd5 {[%emt 0:00:05] [#]} (17... Nxd5 $11 18. Nf5 (18. Qe4 Nf6 $11) 18... Qf6) 18. Ne4 {[%emt 0:01:36]} (18. Bxh6 $1 $16 e4 {[#]} (18... Qd7 19. Qxd7) 19. Bxg7 $1 (19. Nf5 Qe5 $17) 19... exd3 20. Qf4) 18... Bd4 $15 {[%emt 0:01:48]} 19. Nxf6+ {[%emt 0:03:09]} Qxf6 {[%emt 0:00:02]} 20. Bxa5 $2 {[%emt 0:02:54][%mdl 8192]} (20. b3 $17) 20... Qg5 $19 {[%emt 0:03:25][%csl Gd5][%cal Rg5g2]} 21. g3 {[%emt 0:01:40]} Qg4 {[%emt 0:00:11] Weighted Error Value: White=0.78/Black=0.18 (very precise)} 0-1

[Event "Cabo Verde Open 2022"]
[Site "Mindelo-S. Vicente"]
[Date "2022.04.24"]
[Round "3.5"]
[White "Ferreira, Paulo"]
[Black "Del Rio De Angelis, Salvador G."]
[Result "0-1"]
[ECO "D35"]
[WhiteElo "2073"]
[BlackElo "2452"]
[Annotator "TA"]
[PlyCount "62"]
[EventDate "2022.04.22"]
[EventType "swiss"]
[SourceTitle "playchess.com"]
[Source "ChessBase"]
[SourceQuality "1"]
[TimeControl "40/5400+30:1800+30"]

{[%evp 9,62,0,0,0,1,-14,-13,-29,-11,-20,-15,-14,0,0,0,0,0,-4,-21,-18,8,13,2,-25,-19,-75,-66,-183,-143,-156,-138,-233,-209,-206,-215,-204,-138,-142,-157,-138,-138,-130,-106,-278,-236,-571,-512,-907,-886,-1377,-1376,-29978,-29977,-29990,-29991]} 1. d4 {[%emt 0:00:06]} Nf6 {[%emt 0:00:20]} 2. c4 {[%emt 0:00:17]} e6 {[%emt 0:00:45]} 3. Nf3 {[%emt 0:00:25]} d5 {[%emt 0:00:22]} 4. e3 {[%emt 0:00:56]} b6 {[%emt 0:08:07]} 5. Nc3 {[%emt 0:03:51]} Bd6 {[%emt 0:01:07]} 6. Qc2 {[%emt 0:01:42] D35: Queen's Gambit Declined: Exchange Variation.} O-O {[%emt 0:02:42] [#]} 7. e4 $146 {[%emt 0:07:31]} ({Predecessor:} 7. Be2 Bb7 8. cxd5 exd5 9. Nb5 Bb4+ 10. Bd2 Bxd2+ 11. Nxd2 c6 12. Nc3 Na6 13. O-O {1-0 (61) Firouzja,A (2726)-Tang,A (2537) Chess.com INT 2020}) 7... dxe4 {[%emt 0:00:46]} 8. Nxe4 {[%emt 0:01:05] The position is equal.} Bb4+ {[%emt 0:00:28]} 9. Nc3 {[%emt 0:10:46]} Bb7 {[%emt 0:02:12]} 10. a3 {[%emt 0:01:50]} Be7 {[%emt 0:00:19]} 11. Be2 {[%emt 0:08:40]} c5 {[%emt 0:00:41]} 12. dxc5 {[%emt 0:01:21]} bxc5 {[%emt 0:00:07]} 13. Bg5 {[%emt 0:02:45]} Nc6 {[%emt 0:01:54]} 14. Rd1 {[%emt 0:06:20]} Nd4 {[%emt 0:02:08]} 15. Nxd4 {[%emt 0:07:34]} cxd4 {[%emt 0:00:09]} 16. Bxf6 {[%emt 0:01:53]} (16. O-O $5 {[%cal Rg5f4]}) 16... Bxf6 {[%emt 0:00:40]} 17. Ne4 {[%emt 0:00:29]} (17. O-O $11) 17... Qa5+ $17 {[%emt 0:10:04]} 18. Rd2 {[%emt 0:00:59]} (18. b4 $15 Bxe4 19. Qxe4 Qxa3 20. b5) 18... Bg5 {[%emt 0:01:50]} 19. Nxg5 {[%emt 0:02:56]} Qxg5 {[%emt 0:00:08]} 20. Rg1 {[%emt 0:02:56] [#]} (20. Bf3 $17 Bxf3 21. gxf3) 20... e5 $1 $19 {[%emt 0:00:32]} 21. Qb3 {[%emt 0:00:50]} Rab8 {[%emt 0:01:27][%cal Ba8b8,Bb8b3,Bb3a3][%mdl 32]} ({Much less strong is} 21... Bxg2 22. Bf1 $16) 22. Qg3 {[%emt 0:02:21]} Qf6 {[%emt 0:00:14] Hoping for ...e4.} 23. f3 {[%emt 0:01:10]} a5 {[%emt 0:05:19] &Nero is more active.} 24. Bd3 {[%emt 0:01:10]} Ba6 {[%emt 0:12:35] Threatens to win with ...Rb3.} 25. Kd1 {[%emt 0:03:06]} Qc6 {[%emt 0:19:50]} 26. Rc2 {[%emt 0:09:29] This costs White the game.} (26. Qxe5 $17 Bxc4 27. Bxc4 Qxc4 28. Qxd4 Qxd4 29. Rxd4) 26... Rb3 {[%emt 0:11:05]} 27. Be4 {[%emt 0:04:18]} (27. f4 Qb6 28. fxe5) 27... Qc5 {[%emt 0:00:58] aiming for ...d3.} 28. Re1 {[%emt 0:04:55]} (28. Kc1 $142 Bxc4 29. Re1) 28... d3 {[%emt 0:02:01]} 29. Rd2 {[%emt 0:03:11]} Bxc4 {[%emt 0:00:29]} 30. Bxh7+ {[%emt 0:03:08]} Kxh7 {[%emt 0:00:10]} 31. Rxe5 {[%emt 0:00:15] [#]} Rxa3 $1 {[%emt 0:06:02][%mdl 512] Weighted Error Value: White=0.88/Black=0.11 (very precise)} 0-1

[Event "Cabo Verde Open 2022"]
[Site "Mindelo-S. Vicente"]
[Date "2022.04.24"]
[Round "3.6"]
[White "Caxita, Esperanca"]
[Black "Junior, Ednasia"]
[Result "1-0"]
[ECO "B40"]
[WhiteElo "1910"]
[BlackElo "1898"]
[Annotator "TA"]
[PlyCount "99"]
[EventDate "2022.04.22"]
[EventType "swiss"]
[SourceTitle "playchess.com"]
[Source "ChessBase"]
[SourceQuality "1"]
[TimeControl "40/5400+30:1800+30"]

{[%evp 9,99,18,16,-11,0,-33,-22,-10,-8,-16,-1,-27,-29,-34,-42,-54,-30,-43,-11,-31,-25,-47,-34,-83,-65,-88,-41,-51,-55,-76,-40,-46,-31,-115,-112,-115,-114,-114,-115,-131,-56,-85,-85,-82,-84,-140,-138,-151,-144,-183,-184,-190,-195,-182,-189,-208,-197,-187,-62,-66,-60,-122,0,0,145,144,244,236,216,217,257,257,585,557,29969,5135,6041,5243,29980,29981,29981,29982,29982,29983,29983,29984,29988,29976,29988,29987,29996,29997]} 1. e4 {[%emt 0:00:09]} c5 {[%emt 0:00:06]} 2. Nc3 {[%emt 0:00:27]} e6 {[%emt 0:00:10]} 3. Nf3 {[%emt 0:01:06]} a6 {[%emt 0:00:12]} 4. Be2 {[%emt 0:00:28]} Nc6 {[%emt 0:00:16]} 5. O-O {[%emt 0:00:23]} Qc7 {[%emt 0:00:09]} 6. d3 {[%emt 0:00:42] B40: Sicilian: 2...e6, Unusual lines.} Nf6 {[%emt 0:00:13]} 7. Be3 {[%emt 0:00:57]} Ng4 {[%emt 0:03:53] [#]} 8. Qd2 $146 {[%emt 0:02:16] The position is equal.} (8. Bd2 {with more complications.} Be7 9. Re1 O-O 10. h3) ({Predecessor:} 8. Bg5 Nd4 9. Re1 Nxf3+ 10. Bxf3 Qxh2+ 11. Kf1 Ne5 12. Qe2 Qh1# {0-1 (12) Cunha,O-Antunes,P (1356) Coimbra 2016}) 8... Nxe3 {[%emt 0:02:30]} 9. fxe3 {[%emt 0:00:46]} Bd6 {[%emt 0:04:15]} 10. Qe1 {[%emt 0:01:20]} Be7 {[%emt 0:03:02]} 11. Kh1 {[%emt 0:08:27]} O-O {[%emt 0:01:07][%cal Od7d5]} 12. d4 {[%emt 0:04:08][%cal Bd3d4,Bd4d5][%mdl 32]} b5 {[%emt 0:04:02][%cal Bb7b5,Bb5b4][%mdl 32]} 13. Rd1 {[%emt 0:06:55]} Bb7 {[%emt 0:07:13]} 14. d5 {[%emt 0:02:44]} Na7 {[%emt 0:07:46]} 15. Qd2 {[%emt 0:07:39] aiming for d6.} d6 {[%emt 0:02:54]} 16. Ng1 {[%emt 0:07:37]} (16. a4 $15 {is more appropriate.}) 16... b4 {[%emt 0:07:51]} 17. Nb1 {[%emt 0:02:12]} exd5 {[%emt 0:01:28]} (17... Rae8 $17 18. Bc4 exd5 19. Bxd5 Nc6) 18. exd5 $15 {[%emt 0:00:21]} Bg5 {[%emt 0:03:43]} 19. Qd3 {[%emt 0:06:48]} Rfe8 {[%emt 0:05:35]} 20. e4 {[%emt 0:01:31]} Qe7 {[%emt 0:03:21]} 21. Qf3 {[%emt 0:02:34]} (21. Nd2 $1 $15) 21... Bf6 $1 $17 {[%emt 0:00:36]} 22. Nd2 {[%emt 0:03:57]} Bxb2 {[%emt 0:09:33]} 23. Nc4 {[%emt 0:00:14]} Bf6 {[%emt 0:00:55]} 24. Bd3 {[%emt 0:00:14]} Rf8 {[%emt 0:09:45]} ({Better is} 24... Nb5 $17 25. Ne2 Rad8) 25. Ne2 {[%emt 0:01:27]} Nb5 {[%emt 0:01:16]} 26. Ng3 {[%emt 0:01:34] [#]} Nd4 $1 {[%emt 0:01:03]} 27. Qf2 {[%emt 0:03:18]} (27. Qf4 $142) 27... Be5 {[%emt 0:05:40]} 28. Qe3 {[%emt 0:02:03]} Rae8 {[%emt 0:03:05]} 29. Rd2 {[%emt 0:11:14]} f5 {[%emt 0:04:42]} 30. Nxf5 {[%emt 0:09:57]} Nxf5 {[%emt 0:01:05]} 31. exf5 {[%emt 0:00:20]} Bxd5 {[%emt 0:02:45]} 32. Qh3 {[%emt 0:01:33]} Rf6 {[%emt 0:00:43] Threatens to win with ...Rh6.} 33. Ne3 {[%emt 0:02:44] [#]} Bb7 {[%emt 0:01:58] This bishop pair is nice.} (33... Bxa2 34. Ng4 $17) (33... Rh6 $1 $19 34. Qxh6 (34. Nxd5 $2 Qg5 $19) 34... gxh6 35. Nxd5 Qh4) 34. Ng4 $1 $15 {[%emt 0:00:17]} Rff8 {[%emt 0:00:27]} 35. Re2 {[%emt 0:02:59]} ({Avoid the trap} 35. f6 $2 gxf6 36. Ne3 (36. Nxe5 $2 fxe5 37. Rdf2 Rxf2 $19) 36... Kh8 $19) (35. Nxe5 $15 Qxe5 36. f6) 35... Qg5 {[%emt 0:01:02]} (35... Kh8 $17 36. Qh5 g6) 36. f6 $1 $11 {[%emt 0:04:24]} h5 {[%emt 0:01:16]} (36... h6 $11 {keeps the balance.}) 37. Nxe5 $16 {[%emt 0:01:31] White wants to mate with f7+.} Rxe5 {[%emt 0:00:30]} (37... dxe5 $2 38. f7+ (38. Qd7 Rb8 $16) 38... Rxf7 39. Bc4 $18) (37... Rxf6 $16 {keeps fighting.} 38. Nf3 Rxe2 39. Bxe2 (39. Nxg5 $2 Rxf1#) 39... Qg4) 38. Rxe5 $18 {[%emt 0:00:42]} Qxe5 {[%emt 0:00:41]} (38... dxe5 $2 39. Qe6+ Kh8 40. fxg7+ Qxg7 41. Rxf8+ Qxf8 42. Qxe5+ Kg8 43. Bc4+ Kh7 44. Qc7+ Qg7 45. Bd3+ Kh6 46. Qf4+ Qg5 47. Qd6+ Kg7 48. Qc7+ Kf8 49. Qb8+ Ke7 50. Qxb7+ $18) 39. Qd7 $40 {[%emt 0:00:32][%csl Gf6][%cal Rd7g7][%mdl 128] White wants a kill.} Bxg2+ {[%emt 0:01:58]} 40. Kxg2 {[%emt 0:00:00][%csl Gf6][%cal Rd7g7] Dancing on a razor blade.} Qg5+ {[%emt 0:00:00]} (40... Rxf6 {is a better chance.} 41. Rxf6 Qg5+ 42. Kh3 gxf6) 41. Kh3 {[%emt 0:04:06][%cal Of1f4] Strongly threatening Rf4!} Qe3+ {[%emt 0:01:10]} 42. Kh4 {[%emt 0:01:24][%csl Gf6][%cal Rd7g7]} Qd4+ {[%emt 0:00:32]} 43. Kxh5 {[%emt 0:02:40][%csl Gf6][%cal Rd7g7]} Qe5+ {[%emt 0:00:38]} 44. Kg4 {[%emt 0:00:54][%csl Gf6][%cal Rd7g7] White mates.} Qd4+ {[%emt 0:00:19]} 45. Rf4 {[%emt 0:02:14][%csl Gf6][%cal Rd7g7]} Qg1+ {[%emt 0:00:28]} 46. Kh3 {[%emt 0:03:44]} Qe3+ {[%emt 0:00:11]} 47. Kg2 {[%emt 0:00:42][%csl Gf6][%cal Rd7g7]} Qd2+ {[%emt 0:01:00]} 48. Rf2 {[%emt 0:02:00][%csl Gf6][%cal Rd7g7]} Qg5+ {[%emt 0:00:19]} 49. Kf1 {[%emt 0:00:31]} Rb8 {[%emt 0:07:36]} 50. f7+ {[%emt 0:01:30] Weighted Error Value: White=0.13 (very precise) /Black=0.53} 1-0

[Event "Cabo Verde Open 2022"]
[Site "Mindelo-S. Vicente"]
[Date "2022.04.24"]
[Round "3.7"]
[White "Lesbros, Bernard"]
[Black "Vera-Cruz, Rui Manuel Nobre de "]
[Result "1-0"]
[ECO "D11"]
[WhiteElo "1865"]
[BlackElo "1526"]
[Annotator "NA RC COMBH"]
[PlyCount "61"]
[EventDate "2022.04.22"]
[EventType "swiss"]
[SourceTitle "playchess.com"]
[Source "ChessBase"]
[SourceQuality "1"]
[TimeControl "40/5400+30:1800+30"]

1. Nf3 {[%emt 0:20:17]} d5 {[%emt 0:00:39]} 2. c4 {[%emt 0:00:35]} c6 {[%emt 0:00:33]} 3. d4 {[%emt 0:00:07]} Nd7 {[%emt 0:00:53]} 4. cxd5 {[%emt 0:00:25]} cxd5 {[%emt 0:00:07]} 5. Nc3 {[%emt 0:00:40]} Nb6 {[%emt 0:00:38]} 6. Bg5 {[%emt 0:04:00]} g6 {[%emt 0:02:14]} 7. e3 {[%emt 0:01:48]} Bg7 {[%emt 0:00:35]} 8. a4 {[%emt 0:00:33]} a6 {[%emt 0:01:18]} 9. a5 {[%emt 0:00:23]} Nc4 {[%emt 0:01:24]} 10. Bxc4 {[%emt 0:01:32]} dxc4 {[%emt 0:00:16]} 11. Qa4+ {[%emt 0:02:10]} Qd7 {[%emt 0:02:13]} 12. Qxc4 {[%emt 0:01:41]} Nf6 {[%emt 0:00:22]} 13. Ne5 {[%emt 0:00:58]} Qe6 {[%emt 0:01:55]} 14. Qa4+ {[%emt 0:01:46]} Nd7 {[%emt 0:01:42]} 15. Nd3 {[%emt 0:07:47]} O-O {[%emt 0:00:44]} 16. Nf4 {[%emt 0:08:32]} Qg4 {[%emt 0:09:44]} 17. Bxe7 {[%emt 0:03:29]} Re8 {[%emt 0:00:38]} 18. h3 {[%emt 0:03:42]} Qxf4 {[%emt 0:06:43]} 19. exf4 {[%emt 0:04:20]} Rxe7+ {[%emt 0:00:19]} 20. Kd2 {[%emt 0:01:18]} Nf8 {[%emt 0:01:02]} 21. Rhe1 {[%emt 0:09:52]} Be6 {[%emt 0:04:41]} 22. Rad1 {[%emt 0:04:19]} Rd8 {[%emt 0:04:40]} 23. Kc1 {[%emt 0:03:23]} Rc7 {[%emt 0:00:31]} 24. Qb4 {[%emt 0:07:10]} Nd7 {[%emt 0:03:01]} 25. d5 {[%emt 0:03:53]} Bxh3 {[%emt 0:04:31]} 26. gxh3 {[%emt 0:01:21]} Nc5 {[%emt 0:00:34]} 27. d6 {[%emt 0:01:57]} Rc6 {[%emt 0:00:22]} 28. Kb1 {[%emt 0:01:25]} Bf8 {[%emt 0:00:18]} 29. Ne4 {[%emt 0:01:12]} Nd7 {[%emt 0:03:20]} 30. Qxb7 {[%emt 0:00:24]} Nb8 {[%emt 0:02:39]} 31. Ng5 {[%emt 0:01:05]} 1-0

[Event "Cabo Verde Open 2022"]
[Site "Mindelo-S. Vicente"]
[Date "2022.04.24"]
[Round "3.8"]
[White "Soares, Carlos Manuel Santos"]
[Black "Rodriguez Guevara, Celia M."]
[Result "0-1"]
[ECO "B01"]
[WhiteElo "1489"]
[BlackElo "1849"]
[Annotator "NA RC COMBH"]
[PlyCount "88"]
[EventDate "2022.04.22"]
[EventType "swiss"]
[SourceTitle "playchess.com"]
[Source "ChessBase"]
[SourceQuality "1"]
[TimeControl "40/5400+30:1800+30"]

{[%evp 9,65,32,55,32767,33,41,52,10,32767,22,27,35,44,8,19,2,19,8,48,33,48,38,32767,26,31,15,20,-40,-40,-70,-37,-41,0,-53,-58,-207,-216,-472,-492,-475,-401,-416,-443,-389,-445,-433,-487,-469,-505,-498,-496,-537,-570,-563,-507,-528,-553,-554]} 1. e4 {[%emt 0:00:03]} d5 {[%emt 0:01:40]} 2. exd5 {[%emt 0:00:21]} Qxd5 {[%emt 0:00:07]} 3. d4 {[%emt 0:00:31]} Nf6 {[%emt 0:00:33]} 4. Nc3 {[%emt 0:00:12]} Qa5 {[%emt 0:00:09]} 5. Nf3 {[%emt 0:02:21]} Bf5 {[%emt 0:00:35]} 6. Bc4 {[%emt 0:01:59]} e6 {[%emt 0:03:59]} 7. O-O {[%emt 0:00:58]} c6 {[%emt 0:00:55]} 8. Re1 {[%emt 0:01:47]} Be7 {[%emt 0:00:35]} 9. Bg5 {[%emt 0:02:22]} O-O {[%emt 0:02:54]} 10. Qd2 {[%emt 0:04:07]} Qd8 {[%emt 0:04:10]} 11. Rad1 {[%emt 0:00:50]} Nbd7 {[%emt 0:02:04]} 12. h3 {[%emt 0:02:54]} Nb6 {[%emt 0:01:52]} 13. Bb3 {[%emt 0:00:37]} Re8 {[%emt 0:03:51]} (13... h6 $11 {should be considered.} 14. Bxf6 Bxf6) 14. Nh4 {[%emt 0:01:50]} Bg6 {[%emt 0:01:01]} 15. Nxg6 {[%emt 0:00:30]} hxg6 {[%emt 0:00:23]} 16. a3 {[%emt 0:03:47]} Nbd5 {[%emt 0:11:12]} 17. Qd3 {[%emt 0:07:41]} Nxc3 {[%emt 0:06:20]} 18. bxc3 {[%emt 0:00:53]} (18. Qxc3 $11 a5 19. Bc1) 18... Bxa3 {[%emt 0:01:03]} 19. Qf3 {[%emt 0:08:19] [#]} Be7 {[%emt 0:11:20]} (19... a5 $1 $17) 20. c4 {[%emt 0:02:27]} Qa5 {[%emt 0:09:44]} ({Black should play} 20... a5 $15) 21. Re5 {[%emt 0:02:57]} (21. c5 $11) 21... Qc7 {[%emt 0:01:07]} 22. c5 $2 {[%emt 0:03:43]} (22. Ree1 $15) 22... Nd7 {[%emt 0:02:13]} 23. Ree1 $2 {[%emt 0:11:42]} (23. Bf4 Nxe5 24. Bxe5) 23... Bxg5 {[%emt 0:00:24]} 24. c3 {[%emt 0:01:36]} Qf4 {[%emt 0:03:23]} 25. Qd3 {[%emt 0:02:07]} Qf5 {[%emt 0:07:17]} 26. Qe2 {[%emt 0:03:38]} b5 {[%emt 0:06:19]} 27. cxb6 {[%emt 0:02:25]} Nxb6 {[%emt 0:02:26]} ({Wrong is} 27... axb6 $2 28. Bc2 Qf4 29. Be4) 28. Bc2 {[%emt 0:01:01]} Qa5 {[%emt 0:03:17]} 29. c4 {[%emt 0:03:34]} Qc3 {[%emt 0:01:53]} 30. c5 {[%emt 0:01:57]} Nd5 {[%emt 0:00:42]} 31. Rd3 {[%emt 0:02:26]} Qb2 {[%emt 0:03:51]} 32. Rb1 {[%emt 0:02:35] [#]} Nc3 $1 {[%emt 0:00:27]} 33. Rxb2 $19 {[%emt 0:01:07]} Nxe2+ {[%emt 0:00:03]} 34. Kf1 {[%emt 0:01:30]} Nf4 {[%emt 0:00:02]} 35. Rg3 {[%emt 0:00:55]} Bf6 {[%emt 0:00:12]} 36. Be4 {[%emt 0:00:31]} Bxd4 {[%emt 0:01:58]} 37. Rc2 {[%emt 0:00:32]} Nd5 {[%emt 0:00:22]} 38. Rc4 {[%emt 0:01:27]} Bf6 {[%emt 0:00:26]} 39. Rb3 {[%emt 0:00:40]} Reb8 {[%emt 0:00:18]} 40. Ra3 {[%emt 0:00:00]} a5 {[%emt 0:00:00]} 41. Rc2 {[%emt 0:07:09]} Rb1+ {[%emt 0:03:02]} 42. Ke2 {[%emt 0:00:26]} Rb2 {[%emt 0:00:09]} 43. Rxb2 {[%emt 0:00:38]} Bxb2 {[%emt 0:00:03]} 44. Ra2 {[%emt 0:00:26]} Nc3+ {[%emt 0:00:17]} 0-1